[Event "1000GM Spring IM-C 2024"]
[Site "New York"]
[Date "2024.04.01"]
[Round "9.2"]
[White "Andrews, Todd"]
[Black "Shundi, Matias"]
[Result "1-0"]
[ECO "B87"]
[WhiteElo "2160"]
[BlackElo "2191"]
[Annotator "RC"]
[PlyCount "139"]
[EventDate "2024.03.26"]
[EventType "tourn"]
[EventCountry "USA"]
[SourceTitle "playchess.com"]
[Source "ChessBase"]
[SourceQuality "1"]
[TimeControl "5400+30"]

1. e4 {[%emt 0:02:17]} c5 {[%emt 0:08:06]} 2. Nf3 {[%emt 0:00:11]} d6 {[%emt 0:00:06]} 3. d4 {[%emt 0:00:09]} cxd4 {[%emt 0:00:05]} 4. Nxd4 {[%emt 0:00:04]} Nf6 {[%emt 0:00:08]} 5. Nc3 {[%emt 0:00:03]} a6 {[%emt 0:00:06]} 6. Bc4 {[%emt 0:00:20]} e6 {[%emt 0:00:07]} 7. Bb3 {[%emt 0:00:06]} b5 {[%emt 0:00:06]} 8. Qe2 {[%emt 0:00:19]} Be7 {[%emt 0:00:45]} 9. Be3 {[%emt 0:02:25]} O-O {[%emt 0:08:13]} 10. O-O-O {[%emt 0:03:22]} Bb7 {[%emt 0:04:28]} 11. e5 {[%emt 0:15:55]} Ne8 {[%emt 0:08:58]} 12. Bxe6 {[%emt 0:23:37]} fxe6 {[%emt 0:00:38]} 13. Nxe6 {[%emt 0:00:03]} Qc8 {[%emt 0:01:09]} 14. Nxf8 {[%emt 0:00:13]} Bxf8 {[%emt 0:00:08]} 15. Bg5 {[%emt 0:12:17]} Qf5 {[%emt 0:06:59]} 16. f4 {[%emt 0:03:17]} h6 {[%emt 0:06:14]} 17. exd6 {[%emt 0:09:37]} hxg5 {[%emt 0:04:53]} 18. Qxe8 {[%emt 0:00:40]} Nd7 {[%emt 0:00:16]} 19. Qe2 {[%emt 0:03:53]} gxf4 {[%emt 0:02:57]} 20. Rhf1 {[%emt 0:00:46]} b4 {[%emt 0:00:54]} 21. Qc4+ {[%emt 0:00:22]} Kh8 {[%emt 0:00:49]} 22. Rxf4 {[%emt 0:02:09]} Qg5 {[%emt 0:01:27]} 23. Kb1 {[%emt 0:00:44]} g6 {[%emt 0:02:12]} 24. Rh4+ {[%emt 0:01:46]} Kg7 {[%emt 0:00:07]} 25. Qxb4 {[%emt 0:00:22]} Rb8 {[%emt 0:02:55]} 26. Qa4 {[%emt 0:03:42]} Nf6 {[%emt 0:04:38]} 27. g3 {[%emt 0:04:31]} Bf3 {[%emt 0:02:12]} 28. Rf1 {[%emt 0:02:08]} Bg2 {[%emt 0:01:40]} 29. Rd1 {[%emt 0:04:38]} Bf3 {[%emt 0:00:22]} 30. Qxa6 {[%emt 0:01:04]} Ra8 {[%emt 0:04:01]} 31. Qb6 {[%emt 0:00:34]} Bxd1 {[%emt 0:01:29]} 32. Qb7+ {[%emt 0:00:30]} Kg8 {[%emt 0:00:10]} 33. Ne4 {[%emt 0:01:46]} Bxc2+ {[%emt 0:02:18]} 34. Kxc2 {[%emt 0:00:54]} Qf5 {[%emt 0:00:38]} 35. Qxa8 {[%emt 0:00:33]} g5 {[%emt 0:00:26]} 36. Rh8+ {[%emt 0:00:18]} Kxh8 {[%emt 0:00:14]} 37. Qxf8+ {[%emt 0:00:02]} Kh7 {[%emt 0:00:12]} 38. Qf7+ {[%emt 0:00:07]} Kh6 {[%emt 0:00:13]} 39. Qxf6+ {[%emt 0:00:03]} Qxf6 {[%emt 0:00:18]} 40. Nxf6 {[%emt 0:00:03]} Kg6 {[%emt 0:00:05]} 41. d7 {[%emt 0:00:09]} Kxf6 {[%emt 0:00:03]} 42. d8=B+ {[%emt 0:00:10]} Kf5 {[%emt 0:00:05]} 43. a4 {[%emt 0:00:24]} g4 {[%emt 0:00:06]} 44. a5 {[%emt 0:00:08]} Ke4 {[%emt 0:00:03]} 45. a6 {[%emt 0:00:06]} Kf3 {[%emt 0:00:03]} 46. a7 {[%emt 0:00:10]} Kg2 {[%emt 0:00:03]} 47. Bc7 {[%emt 0:00:12]} Kxh2 {[%emt 0:00:06]} 48. b4 {[%emt 0:00:08]} Kg2 {[%emt 0:00:06]} 49. Kd3 {[%emt 0:00:21]} Kh3 {[%emt 0:00:06]} 50. Ke4 {[%emt 0:00:04]} Kg2 {[%emt 0:00:04]} 51. Kf4 {[%emt 0:00:04]} Kh3 {[%emt 0:00:04]} 52. b5 {[%emt 0:00:06]} Kh2 {[%emt 0:00:04]} 53. Kxg4 {[%emt 0:00:05]} Kg2 {[%emt 0:00:02]} 54. Kf4 {[%emt 0:00:10]} Kh3 {[%emt 0:00:03]} 55. g4 {[%emt 0:00:12]} Kh4 {[%emt 0:00:06]} 56. g5 {[%emt 0:00:05]} Kh5 {[%emt 0:00:05]} 57. Kf5 {[%emt 0:00:05]} Kh4 {[%emt 0:00:05]} 58. g6 {[%emt 0:00:12]} Kh3 {[%emt 0:00:03]} 59. g7 {[%emt 0:00:05]} Kg2 {[%emt 0:00:03]} 60. a8=B+ {[%emt 0:00:06]} Kf1 {[%emt 0:00:07]} 61. g8=B {[%emt 0:00:12]} Kf2 {[%emt 0:00:09]} 62. b6 {[%emt 0:00:05]} Ke3 {[%emt 0:00:04]} 63. b7 {[%emt 0:00:04]} Kd4 {[%emt 0:00:03]} 64. b8=B {[%emt 0:00:06]} Kc5 {[%emt 0:00:04]} 65. Bgd5 {[%emt 0:00:18]} Kb5 {[%emt 0:00:06]} 66. Bd6 {[%emt 0:00:12]} Ka6 {[%emt 0:00:05]} 67. Bac6 {[%emt 0:00:16]} Kb6 {[%emt 0:00:07]} 68. Bbc7+ {[%emt 0:00:16]} Ka6 {[%emt 0:00:09]} 69. Bc4+ {[%emt 0:00:08]} Ka7 {[%emt 0:00:02]} 70. Bc5# {[%emt 0:00:06]} 1-0

[Event "1000GM Spring IM-C 2024"]
[Site "New York"]
[Date "2024.04.01"]
[Round "9.3"]
[White "Lekic, Dusan"]
[Black "Savanovic, Aleksandar"]
[Result "1/2-1/2"]
[ECO "D55"]
[WhiteElo "2320"]
[BlackElo "2361"]
[Annotator "RC"]
[PlyCount "52"]
[EventDate "2024.03.26"]
[EventType "tourn"]
[EventCountry "USA"]
[SourceTitle "playchess.com"]
[Source "ChessBase"]
[SourceQuality "1"]
[TimeControl "5400+30"]

1. d4 {[%emt 0:01:29]} Nf6 {[%emt 0:00:12]} 2. c4 {[%emt 0:00:18]} e6 {[%emt 0:00:07]} 3. Nf3 {[%emt 0:00:21]} d5 {[%emt 0:00:06]} 4. Nc3 {[%emt 0:00:49]} Be7 {[%emt 0:00:07]} 5. Bg5 {[%emt 0:00:05]} h6 {[%emt 0:00:06]} 6. Bxf6 {[%emt 0:00:10]} Bxf6 {[%emt 0:00:04]} 7. e3 {[%emt 0:01:35]} O-O {[%emt 0:01:43]} 8. Rc1 {[%emt 0:00:12]} c6 {[%emt 0:00:53]} 9. Bd3 {[%emt 0:00:30]} Nd7 {[%emt 0:00:36]} 10. O-O {[%emt 0:00:08]} dxc4 {[%emt 0:01:03]} 11. Bxc4 {[%emt 0:00:07]} e5 {[%emt 0:00:04]} 12. h3 {[%emt 0:00:05]} exd4 {[%emt 0:01:03]} 13. exd4 {[%emt 0:00:09]} Nb6 {[%emt 0:00:06]} 14. Bb3 {[%emt 0:00:05]} Re8 {[%emt 0:01:23]} 15. Re1 {[%emt 0:01:29]} Bf5 {[%emt 0:00:09]} 16. Rxe8+ {[%emt 0:00:08]} Qxe8 {[%emt 0:00:04]} 17. Qd2 {[%emt 0:00:49]} Qd7 {[%emt 0:00:43]} 18. Re1 {[%emt 0:00:10]} a5 {[%emt 0:00:05]} 19. a3 {[%emt 0:00:06]} Re8 {[%emt 0:00:07]} 20. Rxe8+ {[%emt 0:00:12]} Qxe8 {[%emt 0:00:06]} 21. Qf4 {[%emt 0:00:04]} Be6 {[%emt 0:00:24]} 22. Bxe6 {[%emt 0:00:06]} Qxe6 {[%emt 0:00:07]} 23. Qc7 {[%emt 0:00:12]} Nc4 {[%emt 0:00:17]} 24. Qxb7 {[%emt 0:00:08]} Bxd4 {[%emt 0:00:09]} 25. Nxd4 {[%emt 0:00:08]} Qe1+ {[%emt 0:00:04]} 26. Kh2 {[%emt 1:33:55]} Qe5+ 1/2-1/2

[Event "1000GM Spring IM-C 2024"]
[Site "New York"]
[Date "2024.04.01"]
[Round "9.4"]
[White "Atwell, Rose"]
[Black "Tanenbaum, Zachary"]
[Result "0-1"]
[ECO "C63"]
[WhiteElo "2285"]
[BlackElo "2260"]
[Annotator "RC"]
[PlyCount "62"]
[EventDate "2024.03.26"]
[EventType "tourn"]
[EventCountry "USA"]
[SourceTitle "playchess.com"]
[Source "ChessBase"]
[SourceQuality "1"]
[TimeControl "5400+30"]

1. e4 {[%emt 0:00:01]} e5 {[%emt 0:01:16]} 2. Nf3 {[%emt 0:00:06]} Nc6 {[%emt 0:00:05]} 3. Bb5 {[%emt 0:00:05]} f5 {[%emt 0:00:05]} 4. d3 {[%emt 0:00:05]} fxe4 {[%emt 0:00:05]} 5. dxe4 {[%emt 0:00:03]} Nf6 {[%emt 0:00:04]} 6. O-O {[%emt 0:00:08]} d6 {[%emt 0:00:05]} 7. Nc3 {[%emt 0:01:21]} Be7 {[%emt 0:00:17]} 8. Bc4 {[%emt 0:00:13]} Na5 {[%emt 0:00:08]} 9. Bd3 {[%emt 0:00:06]} O-O {[%emt 0:04:14]} 10. b4 {[%emt 0:00:14]} Nc6 {[%emt 0:00:13]} 11. b5 {[%emt 0:00:11]} Na5 {[%emt 0:07:05]} 12. Nd5 {[%emt 0:00:24]} Bg4 {[%emt 0:06:58]} 13. Be2 {[%emt 0:08:09]} Kh8 {[%emt 0:08:57]} 14. h3 {[%emt 0:06:04]} Be6 {[%emt 0:02:56]} 15. Bd2 {[%emt 0:08:04]} b6 {[%emt 0:07:05]} 16. Bxa5 {[%emt 0:09:40]} bxa5 {[%emt 0:01:31]} 17. Nxf6 {[%emt 0:00:49]} Bxf6 {[%emt 0:06:43]} 18. c4 {[%emt 0:04:41]} c6 {[%emt 0:08:28]} 19. Qa4 {[%emt 0:08:30]} cxb5 {[%emt 0:09:05]} 20. cxb5 {[%emt 0:04:07]} Qb6 {[%emt 0:00:39]} 21. Bc4 {[%emt 0:04:37]} d5 {[%emt 0:13:40]} 22. exd5 {[%emt 0:10:51]} Bf5 {[%emt 0:00:57]} 23. Rae1 {[%emt 0:03:27]} e4 {[%emt 0:02:38]} 24. Nd2 {[%emt 0:04:28]} Rae8 {[%emt 0:04:47]} 25. Bb3 {[%emt 0:05:55]} Bd4 {[%emt 0:02:57]} 26. Nc4 {[%emt 0:01:34]} Qg6 {[%emt 0:02:37]} 27. Ne3 {[%emt 0:01:06]} Bb6 {[%emt 0:00:34]} 28. Kh2 {[%emt 0:07:43]} Bxh3 {[%emt 0:01:10]} 29. gxh3 {[%emt 0:00:49]} Bc7+ {[%emt 0:00:15]} 30. f4 {[%emt 0:00:26]} exf3+ {[%emt 0:00:16]} 31. Kh1 {[%emt 0:00:07]} Qg3 {[%emt 0:00:27]} 0-1

[Event "1000GM Spring IM-C 2024"]
[Site "New York"]
[Date "2024.04.01"]
[Round "9.5"]
[White "Tang, Zoey"]
[Black "Yang, Qindong"]
[Result "1/2-1/2"]
[ECO "E11"]
[WhiteElo "2253"]
[BlackElo "2234"]
[Annotator "RC"]
[PlyCount "74"]
[EventDate "2024.03.26"]
[EventType "tourn"]
[EventCountry "USA"]
[SourceTitle "playchess.com"]
[Source "ChessBase"]
[SourceQuality "1"]
[TimeControl "5400+30"]

1. d4 {[%emt 0:00:02]} Nf6 {[%emt 0:03:23]} 2. c4 {[%emt 0:00:04]} e6 {[%emt 0:00:03]} 3. Nf3 {[%emt 0:00:04]} Bb4+ {[%emt 0:00:23]} 4. Bd2 {[%emt 0:00:19]} a5 {[%emt 0:00:26]} 5. a3 {[%emt 0:00:05]} Bxd2+ {[%emt 0:00:36]} 6. Qxd2 {[%emt 0:00:06]} d5 {[%emt 0:00:11]} 7. e3 {[%emt 0:00:46]} O-O {[%emt 0:00:07]} 8. Nc3 {[%emt 0:00:04]} Nbd7 {[%emt 0:00:26]} 9. cxd5 {[%emt 0:00:05]} exd5 {[%emt 0:00:20]} 10. Bd3 {[%emt 0:00:14]} c6 {[%emt 0:01:32]} 11. O-O {[%emt 0:01:01]} Qe7 {[%emt 0:02:24]} 12. Qc2 {[%emt 0:00:35]} Re8 {[%emt 0:02:02]} 13. Rab1 {[%emt 0:08:50]} Ne4 {[%emt 0:05:19]} 14. Bxe4 {[%emt 0:02:13]} dxe4 {[%emt 0:00:09]} 15. Nd2 {[%emt 0:00:04]} Nf6 {[%emt 0:00:57]} 16. b4 {[%emt 0:03:10]} axb4 {[%emt 0:08:13]} 17. axb4 {[%emt 0:00:15]} Bf5 {[%emt 0:04:44]} 18. b5 {[%emt 0:08:30]} c5 {[%emt 0:04:23]} 19. Nb3 {[%emt 0:04:40]} cxd4 {[%emt 0:00:58]} 20. Nxd4 {[%emt 0:00:06]} Bd7 {[%emt 0:09:28]} 21. Rfc1 {[%emt 0:02:49]} Qe5 {[%emt 0:02:24]} 22. Nce2 {[%emt 0:09:07]} Rec8 {[%emt 0:05:15]} 23. Qd2 {[%emt 0:01:55]} Rxc1+ {[%emt 0:01:21]} 24. Qxc1 {[%emt 0:01:01]} Ng4 {[%emt 0:03:40]} 25. Ng3 {[%emt 0:00:46]} h5 {[%emt 0:09:33]} 26. h3 {[%emt 0:03:47]} h4 {[%emt 0:02:38]} 27. Nf1 {[%emt 0:00:20]} Nf6 {[%emt 0:01:49]} 28. b6 {[%emt 0:08:30]} Qg5 {[%emt 0:16:07]} 29. Kh1 {[%emt 0:01:31]} Ra2 {[%emt 0:00:48]} 30. Nd2 {[%emt 0:03:25]} Qa5 {[%emt 0:08:37]} 31. N2b3 {[%emt 0:09:54]} Qxb6 {[%emt 0:01:28]} 32. Nc5 {[%emt 0:00:05]} Qd6 {[%emt 0:01:12]} 33. Nxb7 {[%emt 0:03:34]} Qd5 {[%emt 0:00:56]} 34. Kg1 {[%emt 0:05:59]} Qg5 {[%emt 0:00:32]} 35. Kf1 {[%emt 0:04:36]} Qe5 {[%emt 0:01:11]} 36. Kg1 {[%emt 0:02:45]} Qg5 {[%emt 0:00:15]} 37. Kf1 {[%emt 0:00:04]} Qe5 {[%emt 0:00:10]} 1/2-1/2